[Event "Titled Tuesday Blitz March 01 Early 2022"]
[White "Fier, Alexandr"]
[Black "Topalov, Aleksandar"]
[WhiteFideId "2107139"]
[BlackFideId "925659"]
[WhiteElo "2569"]
[BlackElo "2098"]
[Result "1-0"]
[Round "07"]
[TimeControl "180+1"]
[Date "2022.03.01"]
[WhiteClock "0:00:43"]
[BlackClock "0:00:05"]

1. e4 {[%clk 0:03:00]}  e6 {[%clk 0:02:59]} 2. Nf3 {[%clk 0:03:00]}  d5 {[%clk 0:03:00]} 3. e5 {[%clk 0:03:01]}  Ne7 {[%clk 0:02:59]} 4. b4 {[%clk 0:02:55]}  Nf5 {[%clk 0:02:53]} 5. c3 {[%clk 0:02:52]}  c6 {[%clk 0:02:52]} 6. d4 {[%clk 0:02:53]}  b6 {[%clk 0:02:52]} 7. h4 {[%clk 0:02:51]}  h5 {[%clk 0:02:47]} 8. Bd3 {[%clk 0:02:51]}  Ba6 {[%clk 0:02:46]} 9. Bc2 {[%clk 0:02:48]}  g6 {[%clk 0:02:44]} 10. a4 {[%clk 0:02:48]}  Be7 {[%clk 0:02:41]} 11. Na3 {[%clk 0:02:47]}  Qd7 {[%clk 0:02:29]} 12. b5 {[%clk 0:02:47]}  Bxa3 {[%clk 0:02:24]} 13. Bxa3 {[%clk 0:02:46]}  cxb5 {[%clk 0:02:23]} 14. Ng5 {[%clk 0:02:43]}  bxa4 {[%clk 0:02:18]} 15. Bxa4 {[%clk 0:02:42]}  Bb5 {[%clk 0:02:18]} 16. Bc2 {[%clk 0:02:42]}  Nc6 {[%clk 0:02:17]} 17. g4 {[%clk 0:02:40]}  hxg4 {[%clk 0:02:16]} 18. Qxg4 {[%clk 0:02:40]}  O-O-O {[%clk 0:02:08]} 19. Rb1 {[%clk 0:02:40]}  Bc4 {[%clk 0:01:58]} 20. Nf3 {[%clk 0:02:39]}  Kb7 {[%clk 0:01:48]} 21. Nd2 {[%clk 0:02:39]}  Ba6 {[%clk 0:01:44]} 22. Ba4 {[%clk 0:02:39]}  Qc7 {[%clk 0:01:42]} 23. Nb3 {[%clk 0:02:39]}  Ka8 {[%clk 0:01:43]} 24. Kd2 {[%clk 0:02:35]}  Rc8 {[%clk 0:01:39]} 25. Rbc1 {[%clk 0:02:16]}  Bc4 {[%clk 0:01:38]} 26. Na1 {[%clk 0:02:13]}  Na5 {[%clk 0:01:36]} 27. h5 {[%clk 0:02:11]}  Ba6 {[%clk 0:01:34]} 28. Bb4 {[%clk 0:02:04]}  gxh5 {[%clk 0:01:17]} 29. Qg5 {[%clk 0:01:59]}  Nc4+ {[%clk 0:01:15]} 30. Kc2 {[%clk 0:01:59]}  Na3+ {[%clk 0:01:06]} 31. Kb3 {[%clk 0:01:57]}  Nb5 {[%clk 0:00:55]} 32. Qf4 {[%clk 0:01:48]}  h4 {[%clk 0:00:54]} 33. Kb2 {[%clk 0:01:40]}  Qc4 {[%clk 0:00:40]} 34. Bb3 {[%clk 0:01:33]}  Qc7 {[%clk 0:00:38]} 35. Bc2 {[%clk 0:01:32]}  Qd7 {[%clk 0:00:23]} 36. Bxf5 {[%clk 0:01:29]}  exf5 {[%clk 0:00:23]} 37. Nc2 {[%clk 0:01:29]}  Nc7 {[%clk 0:00:19]} 38. Ne3 {[%clk 0:01:29]}  Bd3 {[%clk 0:00:18]} 39. Rxh4 {[%clk 0:01:20]}  Na6 {[%clk 0:00:17]} 40. Rxh8 {[%clk 0:01:17]}  Rxh8 {[%clk 0:00:16]} 41. Qg5 {[%clk 0:01:08]}  Nxb4 {[%clk 0:00:15]} 42. cxb4 {[%clk 0:01:09]}  Qb5 {[%clk 0:00:15]} 43. Qe7 {[%clk 0:01:05]}  Bc4 {[%clk 0:00:10]} 44. Ra1 {[%clk 0:01:05]}  a5 {[%clk 0:00:09]} 45. Nd1 {[%clk 0:01:02]}  Rh2 {[%clk 0:00:09]} 46. Kc1 {[%clk 0:00:48]}  Be2 {[%clk 0:00:07]} 47. Nc3 {[%clk 0:00:48]}  Qc4 {[%clk 0:00:06]} 48. Qf8+ {[%clk 0:00:40]}  Ka7 {[%clk 0:00:06]} 49. Qxf7+ {[%clk 0:00:41]}  Ka6 {[%clk 0:00:07]} 50. b5+ {[%clk 0:00:41]}  Qxb5 {[%clk 0:00:06]} 51. Nxb5 {[%clk 0:00:42]}  Bxb5 {[%clk 0:00:06]} 52. Qxd5 {[%clk 0:00:42]}  Rxf2 {[%clk 0:00:05]} 53. Qa8# {[%clk 0:00:43]} 1-0


[Site "https://www.chess.com"]

[Event "Titled Tuesday Blitz March 01 Early 2022"]
[White "Gabdrakhmanov, Azat"]
[Black "Jones, Gawain C B"]
[WhiteFideId "34189197"]
[BlackFideId "409561"]
[WhiteElo "2279"]
[BlackElo "2657"]
[Result "0-1"]
[Round "07"]
[TimeControl "180+1"]
[Date "2022.03.01"]
[WhiteClock "0:00:05"]
[BlackClock "0:01:07"]

1. e4 {[%clk 0:03:00]}  e5 {[%clk 0:02:59]} 2. Nf3 {[%clk 0:02:59]}  Nc6 {[%clk 0:03:00]} 3. Bb5 {[%clk 0:02:59]}  a6 {[%clk 0:03:00]} 4. Ba4 {[%clk 0:02:59]}  Nf6 {[%clk 0:03:01]} 5. O-O {[%clk 0:02:59]}  d6 {[%clk 0:03:00]} 6. Re1 {[%clk 0:02:57]}  Bd7 {[%clk 0:03:00]} 7. c3 {[%clk 0:02:57]}  g6 {[%clk 0:02:59]} 8. d4 {[%clk 0:02:56]}  Bg7 {[%clk 0:02:59]} 9. Nbd2 {[%clk 0:02:56]}  O-O {[%clk 0:02:58]} 10. h3 {[%clk 0:02:56]}  exd4 {[%clk 0:02:54]} 11. cxd4 {[%clk 0:02:55]}  Nb4 {[%clk 0:02:54]} 12. Bxd7 {[%clk 0:02:50]}  Qxd7 {[%clk 0:02:54]} 13. Qb3 {[%clk 0:02:35]}  a5 {[%clk 0:02:54]} 14. a3 {[%clk 0:02:32]}  Nc6 {[%clk 0:02:53]} 15. d5 {[%clk 0:02:24]}  Ne7 {[%clk 0:02:42]} 16. Nf1 {[%clk 0:02:07]}  a4 {[%clk 0:02:37]} 17. Qd3 {[%clk 0:01:58]}  c6 {[%clk 0:02:37]} 18. dxc6 {[%clk 0:01:58]}  Nxc6 {[%clk 0:02:34]} 19. Bg5 {[%clk 0:01:56]}  Rfe8 {[%clk 0:02:28]} 20. Rad1 {[%clk 0:01:53]}  h6 {[%clk 0:02:27]} 21. Bh4 {[%clk 0:01:44]}  Nh5 {[%clk 0:02:24]} 22. Qd2 {[%clk 0:01:08]}  Qe6 {[%clk 0:02:18]} 23. g4 {[%clk 0:01:00]}  Nf6 {[%clk 0:02:16]} 24. Ng3 {[%clk 0:00:33]}  g5 {[%clk 0:02:06]} 25. Bxg5 {[%clk 0:00:30]}  hxg5 {[%clk 0:02:06]} 26. Nxg5 {[%clk 0:00:31]}  Qe5 {[%clk 0:02:02]} 27. Nf5 {[%clk 0:00:31]}  Nh7 {[%clk 0:01:55]} 28. Nxh7 {[%clk 0:00:29]}  Kxh7 {[%clk 0:01:54]} 29. Qg5 {[%clk 0:00:30]}  Re6 {[%clk 0:01:49]} 30. Rd5 {[%clk 0:00:16]}  Qf6 {[%clk 0:01:46]} 31. Qh5+ {[%clk 0:00:16]}  Kg8 {[%clk 0:01:46]} 32. Red1 {[%clk 0:00:14]}  Ne5 {[%clk 0:01:31]} 33. Rxd6 {[%clk 0:00:10]}  Qg6 {[%clk 0:01:20]} 34. Qxg6 {[%clk 0:00:05]}  Nxg6 {[%clk 0:01:17]} 35. Rxe6 {[%clk 0:00:03]}  fxe6 {[%clk 0:01:17]} 36. Ne3 {[%clk 0:00:04]}  Bxb2 {[%clk 0:01:17]} 37. Nc4 {[%clk 0:00:04]}  Bg7 {[%clk 0:01:09]} 38. Rd7 {[%clk 0:00:05]}  b5 {[%clk 0:01:08]} 39. Nd6 {[%clk 0:00:05]}  b4 {[%clk 0:01:07]} 40. axb4 {[%clk 0:00:05]}  a3 {[%clk 0:01:07]} 0-1


[Site "https://www.chess.com"]

[Event "Titled Tuesday Blitz March 01 Early 2022"]
[White "Gabrielian, Artur"]
[Black "Hamley, Ryan"]
[WhiteFideId "4131002"]
[BlackFideId "30959497"]
[WhiteElo "2440"]
[BlackElo "2568"]
[Result "1-0"]
[Round "07"]
[TimeControl "180+1"]
[Date "2022.03.01"]
[WhiteClock "0:01:40"]
[BlackClock "0:02:05"]

1. e4 {[%clk 0:03:00]}  e5 {[%clk 0:02:56]} 2. Nc3 {[%clk 0:03:00]}  Nf6 {[%clk 0:02:55]} 3. g3 {[%clk 0:03:00]}  g6 {[%clk 0:02:54]} 4. Nf3 {[%clk 0:02:57]}  Bg7 {[%clk 0:02:54]} 5. Nxe5 {[%clk 0:02:56]}  Qe7 {[%clk 0:02:54]} 6. d4 {[%clk 0:02:48]}  d6 {[%clk 0:02:54]} 7. Nd3 {[%clk 0:02:23]}  Nxe4 {[%clk 0:02:52]} 8. Nd5 {[%clk 0:02:21]}  Qd8 {[%clk 0:02:39]} 9. Bg2 {[%clk 0:02:18]}  Nf6 {[%clk 0:02:32]} 10. Bg5 {[%clk 0:02:15]}  h6 {[%clk 0:02:28]} 11. Qe2+ {[%clk 0:02:10]}  Kf8 {[%clk 0:02:25]} 12. Bxf6 {[%clk 0:02:07]}  Bxf6 {[%clk 0:02:26]} 13. Nxf6 {[%clk 0:02:05]}  Qxf6 {[%clk 0:02:26]} 14. O-O-O {[%clk 0:02:01]}  c6 {[%clk 0:02:24]} 15. Rhe1 {[%clk 0:01:53]}  Kg7 {[%clk 0:02:22]} 16. Qe7 {[%clk 0:01:44]}  Nd7 {[%clk 0:02:18]} 17. Nf4 {[%clk 0:01:42]}  Rd8 {[%clk 0:02:05]} 18. Ne6+ {[%clk 0:01:40]} 1-0


[Site "https://www.chess.com"]

[Event "Titled Tuesday Blitz March 01 Early 2022"]
[White "Garriga Cazorla, Pere"]
[Black "Kanyamarala, Tarun"]
[WhiteFideId "32011601"]
[BlackFideId "45004714"]
[WhiteElo "2458"]
[BlackElo "2144"]
[Result "1/2-1/2"]
[Round "07"]
[TimeControl "180+1"]
[Date "2022.03.01"]
[WhiteClock "0:00:01"]
[BlackClock "0:00:15"]

1. d4 {[%clk 0:02:31]}  f5 {[%clk 0:02:59]} 2. c4 {[%clk 0:02:30]}  Nf6 {[%clk 0:03:00]} 3. Nc3 {[%clk 0:02:28]}  d6 {[%clk 0:03:01]} 4. Bg5 {[%clk 0:02:29]}  e6 {[%clk 0:03:00]} 5. e4 {[%clk 0:02:27]}  fxe4 {[%clk 0:02:59]} 6. Nxe4 {[%clk 0:02:27]}  Be7 {[%clk 0:02:59]} 7. Bxf6 {[%clk 0:02:23]}  Bxf6 {[%clk 0:02:59]} 8. Nf3 {[%clk 0:02:24]}  O-O {[%clk 0:02:56]} 9. h4 {[%clk 0:02:25]}  c5 {[%clk 0:02:35]} 10. Neg5 {[%clk 0:02:12]}  cxd4 {[%clk 0:02:29]} 11. Bd3 {[%clk 0:02:08]}  g6 {[%clk 0:02:22]} 12. Qc2 {[%clk 0:02:06]}  Kg7 {[%clk 0:02:16]} 13. O-O-O {[%clk 0:01:14]}  Nc6 {[%clk 0:02:13]} 14. a3 {[%clk 0:01:14]}  Ne7 {[%clk 0:01:58]} 15. Kb1 {[%clk 0:01:06]}  Nf5 {[%clk 0:01:52]} 16. Nxh7 {[%clk 0:00:33]}  Kxh7 {[%clk 0:01:50]} 17. g4 {[%clk 0:00:34]}  Kg7 {[%clk 0:01:37]} 18. gxf5 {[%clk 0:00:33]}  gxf5 {[%clk 0:01:36]} 19. h5 {[%clk 0:00:31]}  Qe7 {[%clk 0:01:28]} 20. h6+ {[%clk 0:00:26]}  Kh8 {[%clk 0:01:27]} 21. Rde1 {[%clk 0:00:21]}  Qf7 {[%clk 0:01:22]} 22. Reg1 {[%clk 0:00:17]}  Bd7 {[%clk 0:01:18]} 23. Ng5 {[%clk 0:00:18]}  Bxg5 {[%clk 0:01:16]} 24. Rxg5 {[%clk 0:00:19]}  Rg8 {[%clk 0:01:16]} 25. f4 {[%clk 0:00:14]}  Qf6 {[%clk 0:01:06]} 26. Qd2 {[%clk 0:00:14]}  Bc6 {[%clk 0:01:04]} 27. Re1 {[%clk 0:00:11]}  Qxh6 {[%clk 0:00:57]} 28. Re2 {[%clk 0:00:12]}  Rxg5 {[%clk 0:00:54]} 29. fxg5 {[%clk 0:00:12]}  Qg7 {[%clk 0:00:50]} 30. Rxe6 {[%clk 0:00:11]}  Re8 {[%clk 0:00:28]} 31. Rf6 {[%clk 0:00:08]}  Be4 {[%clk 0:00:23]} 32. Bxe4 {[%clk 0:00:07]}  fxe4 {[%clk 0:00:23]} 33. Qh2+ {[%clk 0:00:03]}  Kg8 {[%clk 0:00:23]} 34. Qxd6 {[%clk 0:00:04]}  e3 {[%clk 0:00:20]} 35. Rg6 {[%clk 0:00:04]}  e2 {[%clk 0:00:19]} 36. Rxg7+ {[%clk 0:00:05]}  Kxg7 {[%clk 0:00:19]} 37. Qxd4+ {[%clk 0:00:05]}  Kg8 {[%clk 0:00:16]} 38. Qd5+ {[%clk 0:00:04]}  Kf8 {[%clk 0:00:14]} 39. Qf5+ {[%clk 0:00:03]}  Kg8 {[%clk 0:00:14]} 40. Qg6+ {[%clk 0:00:03]}  Kf8 {[%clk 0:00:14]} 41. Qf6+ {[%clk 0:00:03]}  Kg8 {[%clk 0:00:14]} 42. Qg6+ {[%clk 0:00:03]}  Kf8 {[%clk 0:00:15]} 43. Qf5+ {[%clk 0:00:03]}  Kg8 {[%clk 0:00:15]} 44. Qd5+ {[%clk 0:00:04]}  Kf8 {[%clk 0:00:15]} 45. Qf3+ {[%clk 0:00:02]}  Kg8 {[%clk 0:00:15]} 46. Qd5+ {[%clk 0:00:01]} 1/2-1/2


[Site "https://www.chess.com"]

[Event "Titled Tuesday Blitz March 01 Early 2022"]
[White "Gatterer, Florian"]
[Black "Piliczewski, Bogusz"]
[WhiteFideId "811688"]
[BlackFideId "1104144"]
[WhiteElo "2218"]
[BlackElo "1896"]
[Result "1-0"]
[Round "07"]
[TimeControl "180+1"]
[Date "2022.03.01"]
[WhiteClock "0:00:48"]
[BlackClock "0:00:13"]

1. c4 {[%clk 0:03:00]}  c6 {[%clk 0:02:59]} 2. Nf3 {[%clk 0:02:58]}  d5 {[%clk 0:02:59]} 3. e3 {[%clk 0:02:59]}  Nf6 {[%clk 0:02:59]} 4. Nc3 {[%clk 0:02:59]}  Bf5 {[%clk 0:02:59]} 5. Qb3 {[%clk 0:02:56]}  Qb6 {[%clk 0:02:58]} 6. cxd5 {[%clk 0:02:54]}  Qxb3 {[%clk 0:02:58]} 7. axb3 {[%clk 0:02:55]}  cxd5 {[%clk 0:02:58]} 8. Nb5 {[%clk 0:02:53]}  Kd8 {[%clk 0:02:41]} 9. Rxa7 {[%clk 0:02:44]}  Rxa7 {[%clk 0:02:37]} 10. Nxa7 {[%clk 0:02:45]}  e6 {[%clk 0:02:25]} 11. Nb5 {[%clk 0:02:41]}  Nc6 {[%clk 0:02:18]} 12. Nbd4 {[%clk 0:02:38]}  Bg6 {[%clk 0:02:09]} 13. Nxc6+ {[%clk 0:02:36]}  bxc6 {[%clk 0:02:08]} 14. Ne5 {[%clk 0:02:35]}  Kc7 {[%clk 0:02:07]} 15. d3 {[%clk 0:02:21]}  Bd6 {[%clk 0:02:04]} 16. Nxg6 {[%clk 0:02:19]}  hxg6 {[%clk 0:02:02]} 17. Bd2 {[%clk 0:02:15]}  Rb8 {[%clk 0:01:59]} 18. Kd1 {[%clk 0:02:12]}  Rxb3 {[%clk 0:01:58]} 19. Kc2 {[%clk 0:02:12]}  Rb8 {[%clk 0:01:55]} 20. Be2 {[%clk 0:02:11]}  c5 {[%clk 0:01:50]} 21. h3 {[%clk 0:02:06]}  Nd7 {[%clk 0:01:39]} 22. f4 {[%clk 0:02:04]}  f6 {[%clk 0:01:35]} 23. h4 {[%clk 0:02:03]}  e5 {[%clk 0:01:26]} 24. g3 {[%clk 0:02:01]}  Kc6 {[%clk 0:01:20]} 25. Bf3 {[%clk 0:01:55]}  f5 {[%clk 0:01:16]} 26. e4 {[%clk 0:01:31]}  Nf6 {[%clk 0:01:02]} 27. exd5+ {[%clk 0:01:24]}  Nxd5 {[%clk 0:01:01]} 28. b3 {[%clk 0:01:23]}  Re8 {[%clk 0:00:49]} 29. Re1 {[%clk 0:01:12]}  Bb8 {[%clk 0:00:46]} 30. Bc3 {[%clk 0:01:10]}  Bd6 {[%clk 0:00:29]} 31. Bxe5 {[%clk 0:01:02]}  Bxe5 {[%clk 0:00:27]} 32. fxe5 {[%clk 0:01:01]}  Re6 {[%clk 0:00:22]} 33. Re2 {[%clk 0:00:52]}  g5 {[%clk 0:00:17]} 34. hxg5 {[%clk 0:00:50]}  Rg6 {[%clk 0:00:16]} 35. e6 {[%clk 0:00:49]}  Kd6 {[%clk 0:00:14]} 36. Bxd5 {[%clk 0:00:48]}  Kxd5 {[%clk 0:00:13]} 37. e7 {[%clk 0:00:48]} 1-0


[Site "https://www.chess.com"]

[Event "Titled Tuesday Blitz March 01 Early 2022"]
[White "Gracia Alvarez, Gerardo Antonio"]
[Black "Wagner, Dennis"]
[WhiteFideId "5109124"]
[BlackFideId "24650684"]
[WhiteElo "2139"]
[BlackElo "2355"]
[Result "0-1"]
[Round "07"]
[TimeControl "180+1"]
[Date "2022.03.01"]
[WhiteClock "0:00:33"]
[BlackClock "0:00:45"]

1. c4 {[%clk 0:03:00]}  e6 {[%clk 0:02:55]} 2. Nf3 {[%clk 0:02:59]}  d5 {[%clk 0:02:55]} 3. e3 {[%clk 0:03:00]}  Nf6 {[%clk 0:02:53]} 4. b3 {[%clk 0:03:00]}  Be7 {[%clk 0:02:54]} 5. Bb2 {[%clk 0:02:59]}  O-O {[%clk 0:02:54]} 6. Be2 {[%clk 0:02:50]}  b6 {[%clk 0:02:49]} 7. cxd5 {[%clk 0:02:41]}  exd5 {[%clk 0:02:47]} 8. O-O {[%clk 0:02:41]}  Bb7 {[%clk 0:02:47]} 9. d4 {[%clk 0:02:41]}  Nbd7 {[%clk 0:02:46]} 10. Ne5 {[%clk 0:02:38]}  Nxe5 {[%clk 0:02:29]} 11. dxe5 {[%clk 0:02:38]}  Ne4 {[%clk 0:02:30]} 12. Nd2 {[%clk 0:02:37]}  Bb4 {[%clk 0:02:24]} 13. Nxe4 {[%clk 0:02:31]}  dxe4 {[%clk 0:02:25]} 14. Qxd8 {[%clk 0:02:27]}  Rfxd8 {[%clk 0:02:24]} 15. Rfd1 {[%clk 0:02:27]}  Bd2 {[%clk 0:02:15]} 16. Kf1 {[%clk 0:02:21]}  c5 {[%clk 0:02:13]} 17. Bc4 {[%clk 0:02:18]}  a6 {[%clk 0:01:47]} 18. a4 {[%clk 0:02:13]}  Kf8 {[%clk 0:01:42]} 19. Ke2 {[%clk 0:02:10]}  Bb4 {[%clk 0:01:42]} 20. Rxd8+ {[%clk 0:01:57]}  Rxd8 {[%clk 0:01:43]} 21. Rd1 {[%clk 0:01:57]}  Rxd1 {[%clk 0:01:43]} 22. Kxd1 {[%clk 0:01:58]}  Ke7 {[%clk 0:01:41]} 23. Ke2 {[%clk 0:01:52]}  h5 {[%clk 0:01:37]} 24. h4 {[%clk 0:01:46]}  Bc8 {[%clk 0:01:33]} 25. f3 {[%clk 0:01:43]}  exf3+ {[%clk 0:01:24]} 26. gxf3 {[%clk 0:01:44]}  Be6 {[%clk 0:01:24]} 27. e4 {[%clk 0:01:26]}  b5 {[%clk 0:01:17]} 28. axb5 {[%clk 0:01:26]}  axb5 {[%clk 0:01:18]} 29. Bxe6 {[%clk 0:01:21]}  Kxe6 {[%clk 0:01:15]} 30. f4 {[%clk 0:01:21]}  g6 {[%clk 0:01:16]} 31. Bc1 {[%clk 0:01:05]}  c4 {[%clk 0:01:12]} 32. bxc4 {[%clk 0:01:05]}  bxc4 {[%clk 0:01:13]} 33. Be3 {[%clk 0:01:02]}  Bc3 {[%clk 0:01:05]} 34. Bf2 {[%clk 0:00:59]}  Kd7 {[%clk 0:01:05]} 35. Bg3 {[%clk 0:00:57]}  Kc6 {[%clk 0:00:54]} 36. Kd1 {[%clk 0:00:48]}  Kc5 {[%clk 0:00:47]} 37. f5 {[%clk 0:00:48]}  gxf5 {[%clk 0:00:45]} 38. exf5 {[%clk 0:00:47]}  Kd5 {[%clk 0:00:46]} 39. e6 {[%clk 0:00:34]}  fxe6 {[%clk 0:00:47]} 40. fxe6 {[%clk 0:00:35]}  Kxe6 {[%clk 0:00:47]} 41. Kc2 {[%clk 0:00:35]}  Bd4 {[%clk 0:00:47]} 42. Bf4 {[%clk 0:00:34]}  Bf6 {[%clk 0:00:44]} 43. Bg3 {[%clk 0:00:33]}  Kf5 {[%clk 0:00:45]} 0-1


[Site "https://www.chess.com"]

[Event "Titled Tuesday Blitz March 01 Early 2022"]
[White "Hoffmann, Asa"]
[Black "Karabalis, Harilos"]
[WhiteFideId "2001470"]
[BlackFideId "4621808"]
[WhiteElo "2117"]
[BlackElo "2168"]
[Result "0-1"]
[Round "07"]
[TimeControl "180+1"]
[Date "2022.03.01"]
[WhiteClock "0:00:38"]
[BlackClock "0:00:46"]

1. d4 {[%clk 0:02:59]}  Nf6 {[%clk 0:02:57]} 2. Bg5 {[%clk 0:02:55]}  d5 {[%clk 0:02:55]} 3. Nd2 {[%clk 0:02:54]}  Bf5 {[%clk 0:02:53]} 4. e3 {[%clk 0:02:53]}  Nbd7 {[%clk 0:02:53]} 5. c4 {[%clk 0:02:53]}  c6 {[%clk 0:02:52]} 6. Qb3 {[%clk 0:02:53]}  Qb6 {[%clk 0:02:51]} 7. c5 {[%clk 0:02:52]}  Qxb3 {[%clk 0:02:52]} 8. axb3 {[%clk 0:02:52]}  a6 {[%clk 0:02:52]} 9. b4 {[%clk 0:02:51]}  Rc8 {[%clk 0:02:52]} 10. Ngf3 {[%clk 0:02:50]}  h6 {[%clk 0:02:51]} 11. Bh4 {[%clk 0:02:49]}  g5 {[%clk 0:02:50]} 12. Bg3 {[%clk 0:02:49]}  Nh5 {[%clk 0:02:50]} 13. Nb3 {[%clk 0:02:46]}  Nxg3 {[%clk 0:02:48]} 14. hxg3 {[%clk 0:02:46]}  Bg7 {[%clk 0:02:48]} 15. Na5 {[%clk 0:02:45]}  Rc7 {[%clk 0:02:48]} 16. Kd2 {[%clk 0:02:34]}  O-O {[%clk 0:02:45]} 17. Bd3 {[%clk 0:02:26]}  Be4 {[%clk 0:02:43]} 18. Bxe4 {[%clk 0:02:23]}  dxe4 {[%clk 0:02:43]} 19. Ne1 {[%clk 0:02:22]}  e5 {[%clk 0:02:43]} 20. Nc2 {[%clk 0:02:19]}  exd4 {[%clk 0:02:43]} 21. exd4 {[%clk 0:02:18]}  Rd8 {[%clk 0:02:37]} 22. Rad1 {[%clk 0:02:01]}  Nf6 {[%clk 0:02:36]} 23. Kc3 {[%clk 0:01:56]}  Nd5+ {[%clk 0:02:33]} 24. Kc4 {[%clk 0:01:56]}  Re7 {[%clk 0:02:31]} 25. Rde1 {[%clk 0:01:52]}  f5 {[%clk 0:02:30]} 26. Ne3 {[%clk 0:01:49]}  Rf7 {[%clk 0:02:21]} 27. g4 {[%clk 0:01:32]}  Nxe3+ {[%clk 0:02:02]} 28. fxe3 {[%clk 0:01:31]}  fxg4 {[%clk 0:02:02]} 29. Ref1 {[%clk 0:01:28]}  Rdf8 {[%clk 0:02:01]} 30. Rxf7 {[%clk 0:01:26]}  Rxf7 {[%clk 0:02:02]} 31. d5 {[%clk 0:01:26]}  cxd5+ {[%clk 0:01:57]} 32. Kxd5 {[%clk 0:01:25]}  Re7 {[%clk 0:01:54]} 33. Nc4 {[%clk 0:01:20]}  Kh7 {[%clk 0:01:52]} 34. Nd6 {[%clk 0:01:20]}  Re5+ {[%clk 0:01:47]} 35. Kc4 {[%clk 0:01:18]}  Re7 {[%clk 0:01:41]} 36. b3 {[%clk 0:01:17]}  Kg6 {[%clk 0:01:34]} 37. b5 {[%clk 0:01:15]}  axb5+ {[%clk 0:01:31]} 38. Nxb5 {[%clk 0:01:15]}  Re5 {[%clk 0:01:20]} 39. Nd6 {[%clk 0:01:13]}  Re7 {[%clk 0:01:14]} 40. b4 {[%clk 0:01:12]}  h5 {[%clk 0:01:14]} 41. b5 {[%clk 0:01:11]}  h4 {[%clk 0:01:12]} 42. Rf1 {[%clk 0:01:09]}  Be5 {[%clk 0:01:05]} 43. Kd5 {[%clk 0:01:04]}  h3 {[%clk 0:01:03]} 44. gxh3 {[%clk 0:00:57]}  gxh3 {[%clk 0:01:03]} 45. Nxe4 {[%clk 0:00:56]}  h2 {[%clk 0:01:02]} 46. Nf2 {[%clk 0:00:54]}  Bc7 {[%clk 0:00:54]} 47. e4 {[%clk 0:00:51]}  Rf7 {[%clk 0:00:53]} 48. e5 {[%clk 0:00:49]}  Rxf2 {[%clk 0:00:51]} 49. Rxf2 {[%clk 0:00:42]}  h1=Q+ {[%clk 0:00:51]} 50. Ke6 {[%clk 0:00:42]}  Bxe5 {[%clk 0:00:47]} 51. Kxe5 {[%clk 0:00:40]}  Qe1+ {[%clk 0:00:46]} 52. Kd6 {[%clk 0:00:39]}  Qxf2 {[%clk 0:00:46]} 53. Kc7 {[%clk 0:00:39]}  Qxc5+ {[%clk 0:00:45]} 54. Kxb7 {[%clk 0:00:38]}  Qxb5+ {[%clk 0:00:46]} 0-1


[Site "https://www.chess.com"]

[Event "Titled Tuesday Blitz March 01 Early 2022"]
[White "Horak, Martin"]
[Black "Tanenbaum, Zachary"]
[WhiteFideId "367095"]
[BlackFideId "2060850"]
[WhiteElo "1997"]
[BlackElo "2168"]
[Result "1-0"]
[Round "07"]
[TimeControl "180+1"]
[Date "2022.03.01"]
[WhiteClock "0:00:15"]
[BlackClock "0:00:09"]

1. d4 {[%clk 0:03:00]}  d5 {[%clk 0:02:58]} 2. c4 {[%clk 0:03:01]}  Bf5 {[%clk 0:02:59]} 3. Nc3 {[%clk 0:02:57]}  e6 {[%clk 0:02:59]} 4. Nf3 {[%clk 0:02:47]}  c6 {[%clk 0:02:59]} 5. Bf4 {[%clk 0:02:46]}  Bd6 {[%clk 0:02:58]} 6. Bxd6 {[%clk 0:02:45]}  Qxd6 {[%clk 0:02:59]} 7. e3 {[%clk 0:02:46]}  Nd7 {[%clk 0:02:58]} 8. Bd3 {[%clk 0:02:44]}  Bg6 {[%clk 0:02:59]} 9. O-O {[%clk 0:02:43]}  Ngf6 {[%clk 0:03:00]} 10. Re1 {[%clk 0:02:37]}  O-O {[%clk 0:02:58]} 11. Bxg6 {[%clk 0:02:36]}  hxg6 {[%clk 0:02:59]} 12. e4 {[%clk 0:02:25]}  dxe4 {[%clk 0:03:00]} 13. Nxe4 {[%clk 0:02:25]}  Nxe4 {[%clk 0:03:00]} 14. Rxe4 {[%clk 0:02:25]}  Rfd8 {[%clk 0:02:59]} 15. Qc2 {[%clk 0:02:20]}  c5 {[%clk 0:02:55]} 16. Rd1 {[%clk 0:02:12]}  Nf6 {[%clk 0:02:52]} 17. Ree1 {[%clk 0:02:11]}  Rac8 {[%clk 0:02:26]} 18. dxc5 {[%clk 0:01:53]}  Qxc5 {[%clk 0:02:25]} 19. h3 {[%clk 0:01:48]}  a5 {[%clk 0:02:17]} 20. b3 {[%clk 0:01:38]}  b6 {[%clk 0:01:56]} 21. Rxd8+ {[%clk 0:01:32]}  Rxd8 {[%clk 0:01:57]} 22. Rd1 {[%clk 0:01:32]}  Rd6 {[%clk 0:01:53]} 23. Rxd6 {[%clk 0:01:31]}  Qxd6 {[%clk 0:01:54]} 24. Qd2 {[%clk 0:01:31]}  Qxd2 {[%clk 0:01:52]} 25. Nxd2 {[%clk 0:01:32]}  Kf8 {[%clk 0:01:52]} 26. Kf1 {[%clk 0:01:32]}  Ke7 {[%clk 0:01:52]} 27. Ke2 {[%clk 0:01:32]}  Nd7 {[%clk 0:01:46]} 28. Kd3 {[%clk 0:01:26]}  Ne5+ {[%clk 0:01:43]} 29. Kd4 {[%clk 0:01:22]}  Nc6+ {[%clk 0:01:42]} 30. Kc3 {[%clk 0:01:22]}  f5 {[%clk 0:01:40]} 31. a3 {[%clk 0:01:20]}  e5 {[%clk 0:01:39]} 32. b4 {[%clk 0:01:20]}  Kd6 {[%clk 0:01:37]} 33. Nf3 {[%clk 0:01:17]}  Nd8 {[%clk 0:01:17]} 34. Nh4 {[%clk 0:01:14]}  Ke6 {[%clk 0:01:06]} 35. Nxg6 {[%clk 0:01:05]}  Kf6 {[%clk 0:01:06]} 36. Nh4 {[%clk 0:01:05]}  e4 {[%clk 0:01:05]} 37. g3 {[%clk 0:01:04]}  g5 {[%clk 0:01:03]} 38. Ng2 {[%clk 0:01:04]}  Ke5 {[%clk 0:00:55]} 39. h4 {[%clk 0:00:57]}  gxh4 {[%clk 0:00:53]} 40. Nxh4 {[%clk 0:00:58]}  Ne6 {[%clk 0:00:49]} 41. Ng6+ {[%clk 0:00:58]}  Kf6 {[%clk 0:00:48]} 42. Nf4 {[%clk 0:00:58]}  Ng5 {[%clk 0:00:43]} 43. c5 {[%clk 0:00:47]}  axb4+ {[%clk 0:00:43]} 44. Kxb4 {[%clk 0:00:46]}  bxc5+ {[%clk 0:00:44]} 45. Kxc5 {[%clk 0:00:46]}  e3 {[%clk 0:00:28]} 46. Nd5+ {[%clk 0:00:44]}  Ke6 {[%clk 0:00:26]} 47. Nxe3 {[%clk 0:00:39]}  Ne4+ {[%clk 0:00:26]} 48. Kb6 {[%clk 0:00:34]}  Nxf2 {[%clk 0:00:27]} 49. a4 {[%clk 0:00:31]}  Nd3 {[%clk 0:00:25]} 50. a5 {[%clk 0:00:29]}  Nb4 {[%clk 0:00:25]} 51. Kb5 {[%clk 0:00:27]}  Na2 {[%clk 0:00:22]} 52. a6 {[%clk 0:00:26]}  Nc3+ {[%clk 0:00:22]} 53. Kc6 {[%clk 0:00:27]}  Ne2 {[%clk 0:00:10]} 54. a7 {[%clk 0:00:24]}  Nd4+ {[%clk 0:00:10]} 55. Kb6 {[%clk 0:00:24]}  Nf3 {[%clk 0:00:04]} 56. a8=Q {[%clk 0:00:23]}  Ne5 {[%clk 0:00:05]} 57. Qd5+ {[%clk 0:00:22]}  Kf6 {[%clk 0:00:04]} 58. Qd6+ {[%clk 0:00:22]}  Kg5 {[%clk 0:00:05]} 59. Qxe5 {[%clk 0:00:22]}  Kh6 {[%clk 0:00:05]} 60. Qxf5 {[%clk 0:00:19]}  Kg7 {[%clk 0:00:06]} 61. Qe6 {[%clk 0:00:16]}  Kh7 {[%clk 0:00:06]} 62. Kc6 {[%clk 0:00:17]}  Kg7 {[%clk 0:00:06]} 63. Kd5 {[%clk 0:00:17]}  Kh7 {[%clk 0:00:07]} 64. Ke5 {[%clk 0:00:18]}  Kg7 {[%clk 0:00:08]} 65. Kf5 {[%clk 0:00:18]}  Kh7 {[%clk 0:00:09]} 66. Kg5 {[%clk 0:00:15]}  Kg7 {[%clk 0:00:09]} 67. Qd7+ {[%clk 0:00:15]}  Kg8 {[%clk 0:00:09]} 68. Kf6 {[%clk 0:00:15]}  Kf8 {[%clk 0:00:09]} 69. Qc8# {[%clk 0:00:15]} 1-0


[Site "https://www.chess.com"]